Cogmind - Beta 16 @@@ ROGUE MODE // 2025.10.26 @ 06:24:55 Player: Naughtyusername Result: Self-destructed Performance ------------- Evolutions (7) 3500 Regions Visited (17) 3400 Robots Destroyed (182) 910 Value Destroyed (7896) 7896 Prototype IDs (82) 1640 Alien Tech Used (4) 800 Bonus (5655) 5655 TOTAL SCORE: 23801 Bonus ------- High Alert Combat Kills 1076 Follower Combat Kills 57 Registered with UFD 300 Met Optimus in HQ 500 Met Zhirov 300 Met Warlord at Base 500 MAIN.C Attacked Warlord 500 Warlord Defense Kills 1536 Met Optimus at Protoforge 1000 Friendly Fire -114 Cogmind --------- Core Integrity 137/1300 Matter 79/300 Energy 100/100 System Corruption 21% Temperature Hot (227) Movement Core (700) Ox13 Location -3/Protoforge Parts ------- > --- POWER (2) -------- (None) > --- PROPULSION (8) --- (None) > --- UTILITY (8) ------ High-capacity Storage Unit > --- WEAPON (3) ------- (None) > --- INVENTORY (20) --- Combat Antigrav System Experimental Coolant Injector Advanced Sensor Array Experimental Reaction Control System Experimental Weapon Shielding Centrium Medium Armor Plating Centrium Medium Armor Plating Makeshift Ablative Armor Peak State ------------ > --- POWER ------------ Vortex Chain Reactor > --- PROPULSION ------- Cooled Gravmag System Cooled Gravmag System Cooled Gravmag System Combat Gravmag System Cooled Antigrav System Combat Antigrav System Combat Antigrav System Combat Linear Gravjet > --- UTILITY ---------- High-capacity Storage Unit Experimental Optical Array Advanced Signal Interpreter Improved Targeting Computer Experimental Core Analyzer Centrium Medium Armor Plating Advanced Hacking Suite A0-MCA's Component Scanner > --- WEAPON ----------- Linear Accelerator Sigix Broadsword > --- INVENTORY -------- Experimental Coolant Injector Advanced Sensor Array Long-range Terrain Scanner Advanced Terrain Scan Processor Advanced Kinecellerator Advanced Transmission Jammer Experimental Reaction Control System Improved Utility Shielding Experimental Weapon Shielding Centrium Medium Armor Plating Makeshift Ablative Armor Dimensional Node Initializer Transdimensional Reconstructor Transdimensional Reconstructor Subatomic Replicator Terrabomb Long-range Proton Cannon Mini Grenade Launcher [Rating: 182] Favorites ----------- Power Improved Deuterium Engine Engine Improved Deuterium Engine Power Core Cooled Fission Core Reactor Antimatter Reactor Propulsion Combat Linear Gravjet Treads Light Treads Leg Improved Titanium Leg Wheel Armored Wheel Hover Unit Combat Linear Gravjet Utility High-capacity Storage Unit Device Advanced Sensor Array Storage High-capacity Storage Unit Processor Improved Signal Interpreter Hackware Advanced Hacking Suite Protection Improved Utility Shielding Weapon Hypervelocity Gauss Rifle Energy Gun Small Laser Energy Cannon Heavy Phase Cannon Ballistic Gun Hypervelocity Gauss Rifle Ballistic Cannon Heavy Gauss Cannon Launcher Subdweller Shrapnel Launcher Special Weapon Mining Laser Slashing Weapon Power Sword Special Melee Weapon Advanced Datajack Build | -11 -10 -10 -7 -7 -5 -5 -5 -5 -4 -4 -4 -4 -4 -3 -3 -3 -3 ------- Run | Yrd Mat Sub Rec Scr Fac Upp Upp War Pro Fac Upp Upp Zhi Pro Res Qua Frg Slots Evolved 14 | . . . . . 10 . . . . 2 . . . . 2 . . Power 1 | . . . . . 1 . . . . . . . . . . . . Propulsion 6 | . . . . . 3 . . . . 2 . . . . 1 . . Utility 6 | . . . . . 5 . . . . . . . . . 1 . . Weapon 1 | . . . . . 1 . . . . . . . . . . . . Parts Attached 162 | 7 4 11 3 11 47 1 2 29 3 10 1 1 8 2 11 9 2 Power 19 | 1 . 4 1 . 4 . . 3 . 2 . . 1 . 1 2 . Engine 9 | 1 . 4 1 . 3 . . . . . . . . . . . . Core 2 | . . . . . . . . 2 . . . . . . . . . Reactor 8 | . . . . . 1 . . 1 . 2 . . 1 . 1 2 . Propulsion 41 | 2 1 2 1 5 12 . . 9 1 1 . . 3 1 2 1 . Treads 7 | 2 1 2 1 1 . . . . . . . . . . . . . Leg 18 | . . . . 3 12 . . 3 . . . . . . . . . Wheel 1 | . . . . 1 . . . . . . . . . . . . . Hover 15 | . . . . . . . . 6 1 1 . . 3 1 2 1 . Flight . | . . . . . . . . . . . . . . . . . . Utility 55 | 2 1 1 1 2 14 1 2 10 . 3 . 1 4 1 7 3 2 Device 27 | 1 . 1 . 1 7 . 2 6 . 2 . 1 2 . 1 3 . Storage 3 | 1 . . . 1 . . . . . . . . . . 1 . . Processor 10 | . . . 1 . 2 . . 3 . . . . . . 3 . 1 Hackware 2 | . . . . . . . . . . . . . . . 1 . 1 Protection 13 | . 1 . . . 5 1 . 1 . 1 . . 2 1 1 . . Artifact . | . . . . . . . . . . . . . . . . . . Weapon 47 | 2 2 4 . 4 17 . . 7 2 4 1 . . . 1 3 . Energy Gun 4 | 1 . . . 1 . . . 2 . . . . . . . . . Energy Cannon 8 | . . 1 . 1 4 . . . . 1 1 . . . . . . Ballistic Gun 19 | 1 . 2 . 1 10 . . 1 2 1 . . . . . 1 . Ballistic Cannon 3 | . . . . . . . . . . 1 . . . . 1 1 . Launcher 5 | . 1 1 . . 1 . . 2 . . . . . . . . . Special Weapon 5 | . 1 . . . 2 . . 2 . . . . . . . . . Impact Weapon . | . . . . . . . . . . . . . . . . . . Slashing Weapon 2 | . . . . 1 . . . . . . . . . . . 1 . Piercing Weapon . | . . . . . . . . . . . . . . . . . . Special Melee Weapon 1 | . . . . . . . . . . 1 . . . . . . . Unidentified Prototypes 38 | . . . . . 7 . 1 16 . 2 . . 4 . 1 5 2 Corrupted Parts 2 | . . . . . . . . . 2 . . . . . . . . System Corruption 11 | . . . . . . . . . 11 . . . . . . . . Parts Lost 41 | . . 2 2 . 6 1 2 1 . 9 . . . . . 1 17 Power 6 | . . 1 . . 1 . 1 . . 2 . . . . . . 1 Propulsion 11 | . . . 1 . 2 . 1 . . . . . . . . . 7 Utility 11 | . . . 1 . 1 1 . . . 2 . . . . . . 6 Weapon 13 | . . 1 . . 2 . . 1 . 5 . . . . . 1 3 Highest Loss Streak 16 | . . 1 2 . 2 1 2 1 . 3 . . . . . 1 16 To Critical Strikes . | . . . . . . . . . . . . . . . . . . Average Backups 14 | 2 7 6 5 16 18 19 20 19 18 18 18 18 18 19 18 19 13 Power 1 | . 1 . . 1 . 1 . . 2 1 1 1 1 3 2 1 . Propulsion 3 | 1 3 2 1 5 2 2 3 2 3 2 3 3 2 1 . . . Utility 5 | . 1 1 . 2 6 8 9 10 8 8 8 8 8 8 9 11 9 Weapon 3 | . 1 2 3 4 3 2 2 2 4 4 4 4 4 3 3 2 1 Tool/Special . | . . . . . . . . . . . . . . . . . . Unused Backups 48 | . 2 4 3 9 10 3 . 5 . 4 . . . . . 2 6 Power 8 | . . 1 . 4 1 . . . . 2 . . . . . . . Propulsion 8 | . 1 2 . 1 . 1 . 2 . 1 . . . . . . . Utility 13 | . . 1 . 3 3 . . 2 . 1 . . . . . 1 2 Weapon 13 | . 1 . 3 1 6 2 . . . . . . . . . . . Tool/Special 6 | . . . . . . . . 1 . . . . . . . 1 4 Average Slot Usage (%) 91 | . 98 99 99 86 92 84 84 92 88 97 88 89 86 94 99 95 43 Engine 9 | . 14 13 14 14 9 5 5 8 . . . . . . . . . Reactor 2 | . . . . . . 5 4 1 5 5 10 10 10 5 8 7 1 Treads 11 | . 28 28 28 18 . . . . . . . . . . . . . Leg 9 | . . . . 6 26 25 24 23 . . . . . . . . . Hover 7 | . . . . . . . . 2 29 35 36 36 36 36 38 38 18 Device 10 | . 1 10 13 14 14 14 14 10 10 9 5 5 5 5 3 2 1 Storage 9 | . 14 14 14 14 5 5 5 5 5 5 5 5 5 5 4 4 3 Processor 7 | . . . . . 9 10 10 17 23 19 15 15 15 15 18 19 9 Protection 4 | . 10 3 . . 7 5 5 4 . 1 10 10 10 10 6 6 . Energy Gun 2 | . 13 4 . 3 . . . 2 . . . . . . . . . Energy Cannon 4 | . . 6 . 3 4 14 14 9 . 2 4 5 2 10 5 2 . Ballistic Gun 7 | . 14 14 26 1 10 . . . 11 10 . . . . . . . Slashing Weapon 1 | . . . . 7 . . . . . . . . . . . 2 1 Peak Build Rating 182 | 7 7 12 19 31 110 110 109 134 139 164 138 134 141 136 158 179 182 Average Rating 66 | 5 6 10 15 24 85 108 107 111 128 154 133 133 126 132 151 168 83 On Entrance 90 | . 7 7 12 14 31 110 106 98 121 127 132 133 134 133 136 154 177 Avg Prop Armor Cover (%) 3 | . . . . 8 . . . 2 . 2 2 2 . . . . . Naked Turns 54 | . . . . . . . . . . . . . . . . . 54 Heaviest Build 117 | 11 13 27 23 64 110 102 102 108 76 111 94 88 97 86 117 113 104 Greatest Support 132 | 40 40 40 48 50 132 132 132 129 75 109 109 109 97 115 126 131 131 Greatest Overweight (x) 13 | . . . . 5 5 . . 1 1 1 1 1 1 . 1 1 13 Average Overweight (x) . | . . . . 1 . . . . . . . . . . . . . Largest Inventory Capacity 20 | 8 8 8 8 20 20 20 20 20 20 20 20 20 20 20 20 20 20 Average Capacity 16 | 7 8 8 8 19 20 20 20 20 20 20 20 20 20 20 20 20 18 Most Carried 20 | 4 8 8 8 20 20 20 20 20 20 20 20 20 20 20 20 20 20 Average Carried 16 | 2 7 7 7 18 19 19 19 19 19 19 19 19 19 20 19 19 13 Final Capacity 20 | 8 8 8 8 20 20 20 20 20 20 20 20 20 20 20 20 20 20 Final Carried 20 | 4 8 8 8 20 19 20 20 20 20 20 19 20 20 20 20 20 8 Class Distribution -------------------- 45% | Mutant 9% | Skirmisher 9% | Scavenger-Scout 7% | Derelict-Skirmisher 6% | Scavenger-Mutant 5% | Derelict-Mutant 5% | Tank 4% | Derelict-Tank Dominant Class ---------------- Mutant | -10/Materials Mutant | -10/Subcaves Mutant | -7/Recycling Mutant | -7/Scraptown Derelict-Skirmisher | -5/Factory Skirmisher | -5/Upper Caves Skirmisher | -5/Upper Caves Tank | -5/Warlord Scavenger-Scout | -4/Proximity Caves Scavenger-Scout | -4/Factory Scavenger-Mutant | -4/Upper Caves Scavenger-Mutant | -4/Upper Caves Scavenger-Mutant | -4/Zhirov Scavenger-Scout | -3/Proximity Caves Scavenger-Scout | -3/Research Scientist-Scout | -3/Quarantine Mutant | -3/Protoforge Resources | -11 -10 -10 -7 -7 -5 -5 -5 -5 -4 -4 -4 -4 -4 -3 -3 -3 -3 ----------- Run | Yrd Mat Sub Rec Scr Fac Upp Upp War Pro Fac Upp Upp Zhi Pro Res Qua Frg Matter Collected 7933 | 224 180 641 259 195 3109 314 98 719 265 669 153 117 . 316 140 486 48 Remotely 408 | . . . . . 49 . . 359 . . . . . . . . . Salvage Created 8961 | 13 314 495 173 . 4724 375 189 308 454 883 91 30 . . 198 666 48 Parts 409 | 2 22 30 3 . 210 17 2 5 16 53 3 3 . . 13 28 2 Haulers Intercepted 7 | . 1 . . . 4 . 1 . . . . . . . 1 . . Recyclers Shooed 13 | . . . . . 11 . . . . 2 . . . . . . . Parts Field Recycled . | . . . . . . . . . . . . . . . . . . Retrieved Matter . | . . . . . . . . . . . . . . . . . . Parts Self-Destructed 48 | . . 16 . . . 13 1 . 16 . . . . 2 . . . Prevented 3 | . . . . . . 3 . . . . . . . . . . . Parts Restored . | . . . . . . . . . . . . . . . . . . Kills | -11 -10 -10 -7 -7 -5 -5 -5 -5 -4 -4 -4 -4 -4 -3 -3 -3 -3 ------- Run | Yrd Mat Sub Rec Scr Fac Upp Upp War Pro Fac Upp Upp Zhi Pro Res Qua Frg Combat Hostiles Destroyed 131 | . 9 12 2 . 58 7 5 11 10 12 . . . . 1 4 . Melee 3 | . . . . . . . . . . . . . . . . 3 . Guns 63 | . 8 5 1 . 27 . . 2 10 10 . . . . . . . Cannons 41 | . . 4 . . 26 5 1 1 . 2 . . . . 1 1 . AOE 20 | . 1 2 1 . 2 2 4 8 . . . . . . . . . Classes Destroyed 21 | 1 3 3 2 . 8 . . 2 . . 1 . . . . 1 . Worker 12 | . . . . . 6 . . . . 4 . . . . 1 1 . Builder 12 | . . . 1 . 5 . . . . 3 . . . . 1 2 . Tunneler 3 | 1 . . . . 1 . . . . 1 . . . . . . . Hauler 7 | . 1 . . . 4 . 1 . . . . . . . 1 . . Recycler 7 | . . . 1 . 4 . . . . . . . . . . 2 . Operator 3 | . . . . . 2 . . . . . . . . . . 1 . Turret 2 | . . 2 . . . . . . . . . . . . . . . Watcher 4 | . . . . . 2 . . . . 1 . . . . . . 1 Swarmer 18 | . 3 6 . . . . . . 6 3 . . . . . . . Saboteur 2 | . . . . . 2 . . . . . . . . . . . . Grunt 49 | . 6 . . . 24 3 5 5 3 2 . . . . . 1 . Brawler 5 | . . . . . 2 1 . 2 . . . . . . . . . Duelist 1 | . . . . . 1 . . . . . . . . . . . . Protector 1 | . . . . . . . . 1 . . . . . . . . . Researcher 1 | . . . . . . . . . . . . . . . . 1 . Sentry 12 | . . 1 2 . 6 1 . . 1 . . . . . 1 . . Hunter 14 | . . . . . 9 . . 1 . 4 . . . . . . . Programmer 22 | . . . . . 14 2 . . . 3 . . . . . 3 . Executioner 2 | . . . . . . . . 2 . . . . . . . . . Subdweller 5 | . . 5 . . . . . . . . . . . . . . . Decomposer 2 | . . . . . . . 2 . . . . . . . . . . Samaritan 3 | . . . . . . . . . . . 2 1 . . . . . Best Kill Streak 11 | 1 5 6 1 . 11 4 6 8 5 5 . . . . 2 4 1 Combat Bots Only 11 | . 5 4 1 . 11 4 5 8 5 3 . . . . 1 3 . Max Kills in Single Turn 4 | 1 1 2 1 . 3 2 4 3 2 2 1 1 . . 2 1 1 Gunslinging 1 | . . . . . 1 . . . 1 . . . . . . . . Exploded 4 | . 1 1 1 . 1 2 4 3 . . . . . . . . . Melee 1 | . . . . . . . . . . . . . . . . 1 . Uniques/NPCs Destroyed . | . . . . . . . . . . . . . . . . . . Combat | -11 -10 -10 -7 -7 -5 -5 -5 -5 -4 -4 -4 -4 -4 -3 -3 -3 -3 -------- Run | Yrd Mat Sub Rec Scr Fac Upp Upp War Pro Fac Upp Upp Zhi Pro Res Qua Frg Hostile Shots Fired 902 | . 28 60 42 . 346 15 12 15 27 185 . . . 8 51 36 77 Missed 271 | . 11 17 10 . 91 3 3 4 5 77 . . . 6 19 3 22 Hits 631 | . 17 43 32 . 255 12 9 11 22 108 . . . 2 32 33 55 Melee 14 | . . . . . 1 . . . . . . . . . . . 13 Projectile 617 | . 17 43 32 . 254 12 9 11 22 108 . . . 2 32 33 42 AOE 3 | . . . . . 1 . . . . . . . . . . . 2 Critical Strikes 41 | . 1 . . . 15 . . 1 . 5 . . . . . 3 16 Actively Blocked 1 | . . . . . 1 . . . . . . . . . . . . Part Disruptions 3 | . . . . . . . . . . . . . . . . 3 . Damage Taken 13151 | . 225 609 255 . 4192 272 171 357 379 2488 . . . 37 708 745 2713 Core 2021 | . 40 119 37 . 298 21 18 44 68 297 . . . 16 47 22 994 Absorbed by Shields 876 | . . . . . 873 . . 3 . . . . . . . . . Redirected to Shielding 240 | . 7 36 7 . 163 . . . . 27 . . . . . . . Regen/Repaired (Parts) 1049 | . . . . . 79 . . 523 . . . . . . . 427 20 Core Remaining (%) 62 | 100 . . . 21 . . . . 55 . . . . 72 . . . Volleys Fired 611 | 4 39 64 13 . 249 9 8 27 17 88 34 2 . 5 25 14 13 Largest 3 | 2 2 2 2 . 3 3 3 3 3 3 1 1 . 1 3 1 1 Hottest 278 | 60 100 125 55 . 278 269 269 269 114 218 90 90 . 90 183 90 81 Shots Fired 1112 | 8 68 91 19 . 553 24 16 39 39 152 34 3 . 5 32 16 13 Gun 580 | 8 62 44 11 . 316 . . 17 32 90 . . . . . . . Cannon 469 | . . 20 . . 232 22 14 10 7 62 34 3 . 5 32 16 12 Launcher 36 | . 2 9 8 . 3 2 2 9 . . . . . . . . 1 Special 27 | . 4 18 . . 2 . . 3 . . . . . . . . . Kinetic 563 | 4 33 45 19 . 296 . . . 32 93 . . . . 27 4 10 Thermal 445 | 4 33 46 . . 229 16 8 9 7 56 28 3 . 2 . 4 . Explosive 10 | . 2 . . . 3 2 2 . . . . . . . . . 1 Electromagnetic 63 | . . . . . 23 6 6 1 . 3 6 . . 3 5 8 2 Entropic 26 | . . . . . . . . 26 . . . . . . . . . Robot Hit Streak 19 | 4 6 14 16 . 17 12 14 19 12 14 5 7 . 1 3 4 2 Robot Miss Streak 5 | 2 3 1 1 . 3 1 . 2 2 5 1 . . 1 2 . 1 Penetration Max 2 | . . . . . 2 . . . . 2 . . . . 1 . . Secondary Targets 10 | . 2 . . . 3 . . . 4 1 . . . . . . . Max Gunslinging Chain 1 | . 1 . . . 1 . . . 1 1 . . . . . . . Shots Hit Robots 545 | 5 36 42 9 . 286 15 7 26 22 61 5 2 . 2 8 16 3 Core Hits 389 | 2 25 25 8 . 172 23 33 24 17 34 4 2 . 1 7 6 6 Critical Kills 33 | . . 1 . . 31 . . . . 1 . . . . . . . Critical Parts Destroyed 41 | . . . . . 37 . . 3 1 . . . . . . . . Critical Strikes 81 | . . 1 . . 69 . . 3 1 3 . . . . 3 1 . Meltdown 3 | . . 1 . . 2 . . . . . . . . . . . . Destroy 69 | . . . . . 67 . . . 1 1 . . . . . . . Blast 4 | . . . . . . . . . . 1 . . . . 3 . . Corrupt 1 | . . . . . . . . . . 1 . . . . . . . Sever 1 | . . . . . . . . . . . . . . . . 1 . Detonate 3 | . . . . . . . . 3 . . . . . . . . . Melee Attacks 44 | . . . . . . . . . . 4 . . . 1 1 29 9 Impact . | . . . . . . . . . . . . . . . . . . Slashing 37 | . . . . . . . . . . . . . . . . 28 9 Piercing . | . . . . . . . . . . . . . . . . . . Sneak Attacks 11 | . . . . . . . . . . 4 . . . 1 1 5 . Combat Hostiles 1 | . . . . . . . . . . . . . . . . 1 . Follow-up Attacks . | . . . . . . . . . . . . . . . . . . Damage Inflicted 20782 | 44 416 983 368 . 8265 872 1268 3235 602 1948 179 54 . 31 460 1755 302 Guns 6214 | 44 340 363 147 . 2604 . . 532 602 1582 . . . . . . . Cannons 6845 | . . 410 . . 4383 465 243 275 . 278 179 54 . 31 407 70 50 Explosions 5695 | . 65 210 210 . 1133 407 1018 2428 . . . . . . 53 . 171 Melee 1653 | . . . . . . . . . . . . . . . . 1572 81 Ramming 375 | . 11 . 11 . 145 . 7 . . 88 . . . . . 113 . Kinetic 5966 | 20 174 506 357 . 2338 . . . 602 1683 . . . . 236 . 50 Thermal 6463 | 24 166 477 . . 4311 328 136 811 . 103 . 54 . . 53 . . Explosive 2794 | . 65 . . . 1133 407 1018 . . . . . . . . . 171 Electromagnetic 1135 | . . . . . 338 137 107 28 . 74 179 . . 31 171 70 . Impact . | . . . . . . . . . . . . . . . . . . Slashing 1653 | . . . . . . . . . . . . . . . . 1572 81 Piercing . | . . . . . . . . . . . . . . . . . . Entropic 2396 | . . . . . . . . 2396 . . . . . . . . . Highest Corruption 21 | . 1 1 1 . 12 12 12 12 11 19 19 19 19 19 1 7 21 Average Corruption 7 | . 1 1 1 . 6 12 12 12 10 9 19 19 19 19 1 4 15 Corruption Purged . | . . . . . . . . . . . . . . . . . . Corruption Blocked . | . . . . . . . . . . . . . . . . . . Effects 317 | . 4 22 7 . 86 36 18 1 16 21 36 25 7 10 . 13 15 Message Errors 77 | . 1 5 2 . 26 6 2 . 6 4 7 9 . 3 . 4 2 Matter Fused 64 | . 1 3 1 . 13 13 2 . 2 5 8 6 4 1 . 3 2 Heat Flow Errors 38 | . 1 4 2 . 10 2 3 . 2 2 5 1 1 2 . . 3 Energy Discharges 25 | . 1 2 1 . 4 4 2 . 1 . 2 2 2 1 . 1 2 Parts Rejected 6 | . . 2 . . 2 1 . . . . . . . . . . 1 Parts Fused 2 | . . . . . 1 . . . . 1 . . . . . . . Data Loss (minor) 33 | . . 1 . . 7 4 4 1 1 2 4 2 . 1 . 3 3 Data Loss (major) 22 | . . 2 . . 5 2 3 . 2 1 2 4 . . . . 1 Misfires 15 | . . 1 1 . 2 2 2 . 1 . 3 1 . . . 2 . Alerts 11 | . . 2 . . 4 1 . . 1 1 1 . . . . . 1 Misdirections 7 | . . . . . 1 . . . . 3 1 . . 2 . . . Weapon Failures 17 | . . . . . 11 1 . . . 2 3 . . . . . . Overload Shots . | . . . . . . . . . . . . . . . . . . Overflow Damage 1094 | . . 9 . . 293 . 25 114 . . . . . . 34 618 1 Projectiles 345 | . . . . . 290 . 21 . . . . . . . 34 . . Explosions 125 | . . 9 . . 1 . . 114 . . . . . . . . 1 Melee 624 | . . . . . 2 . 4 . . . . . . . . 618 . Knockbacks 3 | . . . . . . . . . . . . . . . 1 2 . Impact 2 | . . . . . . . . . . . . . . . . 2 . Kinetic 1 | . . . . . . . . . . . . . . . 1 . . Secondary . | . . . . . . . . . . . . . . . . . . Self-Inflicted Damage 307 | . 41 . 23 . 24 24 . . . 44 . . . . 47 56 48 Shots 7 | . 2 . 1 . 1 1 . . . . . . . . 1 . 1 Rammed 13 | . 4 . 5 . . . . . . 2 . . . . . 2 . Targets Rammed 24 | . 4 . 6 . 9 . 1 . . 2 . . . . . 2 . Kicked 10 | . . . . . 9 . 1 . . . . . . . . . . Crushed 1 | . . . 1 . . . . . . . . . . . . . . Highest Temperature 806 | 40 122 221 202 . 456 214 229 96 225 465 458 187 291 156 200 3 806 Average Temperature 101 | 16 35 47 68 . 103 48 82 31 94 126 113 74 69 48 132 3 292 Received Heat Transfer 2721 | . 96 174 66 . 942 63 72 . 78 57 . . . . 51 60 1062 Effects 9 | . . . . . 3 . . . . 4 . . . . 1 . 1 Shutdowns 1 | . . . . . . . . . . 1 . . . . . . . Energy Bleed 1 | . . . . . . . . . . . . . . . 1 . . Interference 3 | . . . . . 1 . . . . 2 . . . . . . . Matter Decay 2 | . . . . . 2 . . . . . . . . . . . . Damage (major) 1 | . . . . . . . . . . 1 . . . . . . . Damage (core) 1 | . . . . . . . . . . . . . . . . . 1 Siege Activations . | . . . . . . . . . . . . . . . . . . Martial Activations . | . . . . . . . . . . . . . . . . . . Shielding Activations . | . . . . . . . . . . . . . . . . . . Robots Disrupted . | . . . . . . . . . . . . . . . . . . Combat Hostiles . | . . . . . . . . . . . . . . . . . . Robots Corrupted 5 | . . . . . 1 . 1 . . . . . . . 1 2 . Combat Hostiles . | . . . . . . . . . . . . . . . . . . Parts Fried 18 | . . . . . 4 . . . . 1 5 . . . 1 7 . Impact Corruptions 6 | . . . . . 1 . 1 . . . . . . . . 4 . Robots Melted 4 | . . 1 . . 3 . . . . . . . . . . . . Combat Hostiles 4 | . . 1 . . 3 . . . . . . . . . . . . Parts Melted 18 | . . 2 . . 15 . . . . 1 . . . . . . . Heat Transferred 7393 | 50 375 705 . . 4915 385 187 541 . 111 . 74 . . 50 . . Parts Sabotaged . | . . . . . . . . . . . . . . . . . . Parts Stolen . | . . . . . . . . . . . . . . . . . . Parts Stripped . | . . . . . . . . . . . . . . . . . . Power Chain Reactions 1 | . . . . . . . . . . . . . . . 1 . . Alert | -11 -10 -10 -7 -7 -5 -5 -5 -5 -4 -4 -4 -4 -4 -3 -3 -3 -3 ------- Run | Yrd Mat Sub Rec Scr Fac Upp Upp War Pro Fac Upp Upp Zhi Pro Res Qua Frg Maximum Alert Level 4 | . . . . . 4 . . . . 1 . . . . 2 2 1 Low Security (%) 55 | 100 100 . 100 . 32 . . . . 51 . . . . . . 78 Level 1 13 | . . . . . 10 . . . . 48 . . . . . 40 21 Level 2 21 | . . . . . 35 . . . . . . . . . 100 59 . Level 3 2 | . . . . . 6 . . . . . . . . . . . . Level 4 6 | . . . . . 15 . . . . . . . . . . . . Level 5 . | . . . . . . . . . . . . . . . . . . High Security . | . . . . . . . . . . . . . . . . . . Max Security . | . . . . . . . . . . . . . . . . . . Peak Influence 1483 | 5 100 . 95 . 1483 . . . . 307 . . . . 642 567 293 Initial 510 | . . . 50 . . . . . . 19 . . . . 510 369 265 Average 282 | . 23 . 27 . 497 . . . . 167 . . . . 522 425 92 Influence Increases 6132 | 5 264 280 342 . 2157 160 105 250 210 793 45 . . 180 717 476 148 Destroy 0b10 Robot/C 2600 | . 180 180 40 . 1180 140 100 200 200 260 . . . . 20 100 . Destroy 0b10 Robot/NC 245 | 5 5 . 10 . 120 . 5 5 . 45 . . . . 15 30 5 Destroy Leader 430 | . 42 10 . . 272 20 . . 10 52 . . . . 12 10 2 Allied During Kill 31 | . . . . . 20 . . . . 11 . . . . . . . Successful Hack 229 | . 25 . 38 . 11 . . . . 34 . . . . . 55 66 Select Force Hacks 150 | . . . 150 . . . . . . . . . . . . . . Disable Machine 420 | . . . 30 . 150 . . . . 90 . . . . 45 105 . Destroy Structure 632 | . 12 . 74 . 314 . . . . 136 . . . . 40 26 30 Advance Influence 450 | . . . . . . . . . . . . . . . 450 . . Partial Spotted 75 | . . . . . 15 . . . . 15 . . . . . 45 . Lose Combat Pursuer 870 | . . 90 . . 75 . . 45 . 150 45 . . 180 135 105 45 Influence Decreases 6132 | 5 264 174 448 . 678 918 404 537 313 646 224 . . 90 150 660 621 Entered New Map 1905 | . . . 56 . . 548 138 422 135 13 67 . . . 30 288 208 Time Decay 3359 | 5 264 174 372 . 598 350 246 105 178 338 157 . . 90 120 262 100 Search Patrol Dispatched 100 | . . . . . . . . . . . . . . . . 100 . Lost Part 383 | . . . 20 . 60 10 20 10 . 90 . . . . . 10 163 Lost Ally 85 | . . . . . 20 10 . . . 55 . . . . . . . Purge Threat 300 | . . . . . . . . . . 150 . . . . . . 150 Squads Dispatched 60 | . 2 . . . 33 . . . . 10 . . . . 2 4 9 Investigation 20 | . . . . . 8 . . . . 5 . . . . 1 1 5 Extermination 11 | . . . . . 6 . . . . 3 . . . . . 2 . Reinforcement 17 | . 2 . . . 10 . . . . 2 . . . . 1 1 1 Assault 3 | . . . . . 3 . . . . . . . . . . . . Garrison 9 | . . . . . 6 . . . . . . . . . . . 3 Intercept . | . . . . . . . . . . . . . . . . . . Searches Triggered 1 | . . . . . . . . . . . . . . . . 1 . Construction Impeded 3 | . . . . . 2 . . . . . . . . . . . 1 Haulers Reinforced 3 | . . . . . 3 . . . . . . . . . . . . Active Scanning Responses . | . . . . . . . . . . . . . . . . . . Cargo Convoy Interrupts . | . . . . . . . . . . . . . . . . . . Stealth | -11 -10 -10 -7 -7 -5 -5 -5 -5 -4 -4 -4 -4 -4 -3 -3 -3 -3 --------- Run | Yrd Mat Sub Rec Scr Fac Upp Upp War Pro Fac Upp Upp Zhi Pro Res Qua Frg Distress Signals 12 | . 1 . . . 5 . . . . 2 . . . . . 4 . Communications Jammed . | . . . . . . . . . . . . . . . . . . Distress Signals . | . . . . . . . . . . . . . . . . . . Times Spotted 290 | . 18 11 2 . 85 7 7 33 10 38 2 . . 19 26 17 15 Peak Tracking Total 16 | . 4 6 1 . 10 4 5 7 5 9 3 . . 9 16 8 11 Tactical Retreats 32 | . . 2 . . 4 . . 3 . 8 1 . . 5 3 4 2 ECM-based Alert Blocks 5 | . . . . . . . . . . 5 . . . . . . . Traps | -11 -10 -10 -7 -7 -5 -5 -5 -5 -4 -4 -4 -4 -4 -3 -3 -3 -3 ------- Run | Yrd Mat Sub Rec Scr Fac Upp Upp War Pro Fac Upp Upp Zhi Pro Res Qua Frg Traps Triggered 8 | . 1 . . . 3 . . . . 3 . . . . . 1 . Indirectly . | . . . . . . . . . . . . . . . . . . Trap Hack Attempts . | . . . . . . . . . . . . . . . . . . Triggered . | . . . . . . . . . . . . . . . . . . Disarmed . | . . . . . . . . . . . . . . . . . . Reprogrammed . | . . . . . . . . . . . . . . . . . . Reused . | . . . . . . . . . . . . . . . . . . Traps Extracted . | . . . . . . . . . . . . . . . . . . Installed . | . . . . . . . . . . . . . . . . . . Triggered . | . . . . . . . . . . . . . . . . . . Machines | -11 -10 -10 -7 -7 -5 -5 -5 -5 -4 -4 -4 -4 -4 -3 -3 -3 -3 ---------- Run | Yrd Mat Sub Rec Scr Fac Upp Upp War Pro Fac Upp Upp Zhi Pro Res Qua Frg Machines Disabled 36 | . . 5 2 . 10 . . 2 . 6 . . . . 3 7 1 Max in Single Turn 4 | . . 4 1 . 1 . . 1 . 1 . . . . 1 1 1 Garrison Access 1 | . . . . . . . . . . . . . . . 1 . . Machines Repaired . | . . . . . . . . . . . . . . . . . . Machines Dismantled 1 | . . . . . . . . 1 . . . . . . . . . Machines Sabotaged . | . . . . . . . . . . . . . . . . . . Overloaded Fab Kills . | . . . . . . . . . . . . . . . . . . Hacking | -11 -10 -10 -7 -7 -5 -5 -5 -5 -4 -4 -4 -4 -4 -3 -3 -3 -3 --------- Run | Yrd Mat Sub Rec Scr Fac Upp Upp War Pro Fac Upp Upp Zhi Pro Res Qua Frg Machines Accessed 92 | . 8 2 11 7 15 1 . 1 . 17 . . 4 . 4 12 10 Terminals 43 | . 6 . 6 . 6 1 . . . 6 . . . . 2 10 6 Fabricators 5 | . . . . . 1 . . . . 4 . . . . . . . Repair Stations 3 | . . . . . 1 . . . . 1 . . . . . 1 . Recycling Units 21 | . 2 . 5 . 6 . . . . 4 . . . . 1 . 3 Scanalyzers 2 | . . . . . . . . . . 1 . . . . . 1 . Garrison Access 4 | . . . . . 1 . . . . 1 . . . . 1 . 1 Total Hacks 237 | . 17 6 31 35 34 1 . 1 . 37 . . 17 . 5 34 19 Successful 137 | . 8 6 19 35 11 1 . 1 . 13 . . 17 . 2 19 5 Failed 100 | . 9 . 12 . 23 . . . . 24 . . . . 3 15 14 Catastrophic 26 | . . . 3 . 4 . . . . 7 . . . . 2 . 10 Database Lockouts . | . . . . . . . . . . . . . . . . . . Manual 105 | . 13 . 22 . 23 . . . . 12 . . . . 1 24 10 Terminals 105 | . 14 . 17 . 17 1 . . . 12 . . . . 3 30 11 Fabricators 9 | . . . . . 2 . . . . 7 . . . . . . . Repair Stations 5 | . . . . . 2 . . . . 2 . . . . . 1 . Recycling Units 44 | . 3 . 14 . 11 . . . . 9 . . . . 1 . 6 Scanalyzers 9 | . . . . . . . . . . 6 . . . . . 3 . Garrison Access 6 | . . . . . 2 . . . . 1 . . . . 1 . 2 Terminal Hacks 76 | . 2 6 1 35 2 1 . 1 . 3 . . 17 . . 5 3 Record 41 | . . 5 . 30 . 1 . . . . . . 5 . . . . Part Schematic 4 | . . . . . . . . . . . . . 4 . . . . Robot Analysis 9 | . . . . 5 . . . . . . . . 4 . . . . Prototype ID Bank 5 | . . . . . . . . . . . . . 4 . . 1 . Open Door 1 | . . . . . . . . 1 . . . . . . . . . Branch Access Points 1 | . . . . . . . . . . 1 . . . . . . . Terminal Index 5 | . 1 . 1 . 1 . . . . . . . . . . 1 1 Alert Level 2 | . . . . . 1 . . . . . . . . . . 1 . Unreport Threat 2 | . . . . . . . . . . 1 . . . . . . 1 Locate Traps 1 | . . . . . . . . . . 1 . . . . . . . Security Status 1 | . . . . . . . . . . . . . . . . . 1 Hauler Manifests 1 | . . . . . . . . . . . . . . . . 1 . Registered Components 1 | . 1 . . . . . . . . . . . . . . . . Zone Layout 1 | . . . . . . . . . . . . . . . . 1 . Proto ID Catalog 1 | . . 1 . . . . . . . . . . . . . . . Fabricator Hacks 2 | . . . . . 1 . . . . 1 . . . . . . . Network Status 2 | . . . . . 1 . . . . 1 . . . . . . . Repair Station Hacks . | . . . . . . . . . . . . . . . . . . Recycling Unit Hacks 8 | . 1 . 6 . . . . . . 1 . . . . . . . Retrieve Components 8 | . 1 . 6 . . . . . . 1 . . . . . . . Scanalyzer 7 | . . . . . . . . . . 5 . . . . . 2 . Insert Component 1 | . . . . . . . . . . 1 . . . . . . . Retrieve Study 6 | . . . . . . . . . . 4 . . . . . 2 . Garrison Access Hacks 1 | . . . . . . . . . . . . . . . 1 . . Seal Access 1 | . . . . . . . . . . . . . . . 1 . . Unauthorized Hacks 43 | . 5 . 12 . 8 . . . . 3 . . . . 1 12 2 Terminals 25 | . 5 . 7 . 1 . . . . . . . . . . 11 1 Track 3 | . . . . . . . . . . . . . . . . 2 1 Assimilate 1 | . . . . . 1 . . . . . . . . . . . . Botnet 3 | . . . 2 . . . . . . . . . . . . 1 . Disrupt 1 | . . . . . . . . . . . . . . . . 1 . Operators 1 | . . . . . . . . . . . . . . . . 1 . Skim 16 | . 5 . 5 . . . . . . . . . . . . 6 . Fabricators 1 | . . . . . 1 . . . . . . . . . . . . Haulers 1 | . . . . . 1 . . . . . . . . . . . . Repair Stations 2 | . . . . . 1 . . . . . . . . . . 1 . Patch 2 | . . . . . 1 . . . . . . . . . . 1 . Recycling Units 15 | . . . 5 . 5 . . . . 3 . . . . 1 . 1 Tunnel 5 | . . . 5 . . . . . . . . . . . . . . Fedlink 10 | . . . . . 5 . . . . 3 . . . . 1 . 1 Scanalyzers . | . . . . . . . . . . . . . . . . . . Garrison Access . | . . . . . . . . . . . . . . . . . . Data Cores Recovered 2 | . . . . . 1 . . . . . . . . . . 1 . Used . | . . . . . . . . . . . . . . . . . . Hacking Detections 61 | . 6 . 8 . 10 . . . . 14 . . . . 2 11 10 Full Trace Events 8 | . . . . . 2 . . . . 2 . . . . . . 4 Feedback Events . | . . . . . . . . . . . . . . . . . . Feedback Blocked . | . . . . . . . . . . . . . . . . . . Robot Schematics Acquired 1 | . . . . . . . . . . . . . . . . 1 . Robots Built . | . . . . . . . . . . . . . . . . . . Authchips . | . . . . . . . . . . . . . . . . . . Time . | . . . . . . . . . . . . . . . . . . Total Robot Build Rating . | . . . . . . . . . . . . . . . . . . Part Schematics Acquired 5 | . . . . . . . . . . . . . 4 . . 1 . Parts Built . | . . . . . . . . . . . . . . . . . . Authchips . | . . . . . . . . . . . . . . . . . . Time . | . . . . . . . . . . . . . . . . . . Total Part Build Rating . | . . . . . . . . . . . . . . . . . . Part Studies Acquired 5 | . . . . . . . . . . 3 . . . . . 2 . Parts Repaired . | . . . . . . . . . . . . . . . . . . Time . | . . . . . . . . . . . . . . . . . . Parts Recycled . | . . . . . . . . . . . . . . . . . . Recycled Matter . | . . . . . . . . . . . . . . . . . . Retrieved Matter . | . . . . . . . . . . . . . . . . . . Retrieved Components 12 | . 5 . 7 . . . . . . . . . . . . . . Parts Scanalyzed . | . . . . . . . . . . . . . . . . . . Part Schematics Acquired . | . . . . . . . . . . . . . . . . . . Parts Damaged . | . . . . . . . . . . . . . . . . . . Bothacking | -11 -10 -10 -7 -7 -5 -5 -5 -5 -4 -4 -4 -4 -4 -3 -3 -3 -3 ------------ Run | Yrd Mat Sub Rec Scr Fac Upp Upp War Pro Fac Upp Upp Zhi Pro Res Qua Frg Used RIF Installer . | . . . . . . . . . . . . . . . . . . Robots Hacked 4 | . . . . . . . . . . 1 . . . 1 1 1 . Non-combat 3 | . . . . . . . . . . 1 . . . . 1 1 . Combat 1 | . . . . . . . . . . . . . . 1 . . . Robot Hacks Applied 4 | . . . . . . . . . . 1 . . . 1 1 1 . parse_system 3 | . . . . . . . . . . . . . . 1 1 1 . find_chute 1 | . . . . . . . . . . 1 . . . . . . . Relay Couplers Released . | . . . . . . . . . . . . . . . . . . Fabnet Peak Effective % . | . . . . . . . . . . . . . . . . . . Robots Rewired 3 | . . . . . . . . . . 3 . . . . . . . Allies Hacked . | . . . . . . . . . . . . . . . . . . Hacks Repelled . | . . . . . . . . . . . . . . . . . . Allies | -11 -10 -10 -7 -7 -5 -5 -5 -5 -4 -4 -4 -4 -4 -3 -3 -3 -3 -------- Run | Yrd Mat Sub Rec Scr Fac Upp Upp War Pro Fac Upp Upp Zhi Pro Res Qua Frg Total Allies 5 | . . . . 1 1 . . . . 3 . . . . . . . Largest Group 3 | . . . . 1 1 . . . . 3 . . . . . . . Highest-Rated Group 143 | . . . . 50 50 . . . . 143 . . . . . . . Highest-Rated Ally 50 | . . . . 50 50 . . . . 49 . . . . . . . Total Orders 14 | . . . . . 4 4 4 . . 2 . . . . . . . STAY 2 | . . . . . 1 . . . . 1 . . . . . . . FOLLOW 1 | . . . . . . . . . . 1 . . . . . . . EXPLORE 6 | . . . . . 1 3 2 . . . . . . . . . . RETURN 5 | . . . . . 2 1 2 . . . . . . . . . . Ally Attacks 51 | . . . . . 40 . . . . 11 . . . . . . . Total Damage 1045 | . . . . . 729 . . . . 316 . . . . . . . Kills 2 | . . . . . 1 . . . . 1 . . . . . . . Allies Corrupted . | . . . . . . . . . . . . . . . . . . Allies Melted . | . . . . . . . . . . . . . . . . . . Intel | -11 -10 -10 -7 -7 -5 -5 -5 -5 -4 -4 -4 -4 -4 -3 -3 -3 -3 ------- Run | Yrd Mat Sub Rec Scr Fac Upp Upp War Pro Fac Upp Upp Zhi Pro Res Qua Frg Active Infowar (turns) 15120 | 36 155 1812 1229 3789 2490 744 484 450 504 874 656 593 116 209 245 562 172 Optics 4381 | . . . . . . . . 450 504 874 656 593 116 209 245 562 172 Sensors 7060 | . . . . . 2490 744 484 39 456 625 638 591 113 209 218 320 133 Structural 186 | . . 186 . . . . . . . . . . . . . . . Seismic 6835 | 36 155 1626 1229 3789 . . . . . . . . . . . . . Jamming 8 | . . . . . . . . . . . . . . . . 1 7 ECM 28 | . . . . . . . . . . 28 . . . . . . . Robot Analysis Total 9 | . . . . 5 . . . . . . . . 4 . . . . Derelict Logs Recovered 10 | . . 1 . 2 . 1 1 . 1 . 2 2 . . . . . Drone Launches 9 | . . . . . 3 3 3 . . . . . . . . . . Drone Recoveries 8 | . . . . . 3 2 3 . . . . . . . . . . Exploration | -11 -10 -10 -7 -7 -5 -5 -5 -5 -4 -4 -4 -4 -4 -3 -3 -3 -3 ------------- Run | Yrd Mat Sub Rec Scr Fac Upp Upp War Pro Fac Upp Upp Zhi Pro Res Qua Frg Turns Passed 19376 | 114 1273 2532 1254 4218 3355 794 525 1121 504 874 656 593 116 209 245 562 431 Spaces Moved 13229 | 56 573 1391 542 1922 1652 594 418 819 598 1238 572 503 168 302 441 939 501 Core 107 | 2 . . . . . . . . . . . . . . . . 105 Treads 3781 | 54 573 1391 542 1221 . . . . . . . . . . . . . Legs 3688 | . . . . 292 1651 594 418 733 . . . . . . . . . Wheels 410 | . . . . 409 1 . . . . . . . . . . . . Hover 5243 | . . . . . . . . 86 598 1238 572 503 168 302 441 939 396 Flight . | . . . . . . . . . . . . . . . . . . Fastest Speed 15 | 50 160 160 160 152 112 114 112 45 39 27 29 29 32 15 16 16 16 Average Speed 114 | 156 160 160 160 209 131 114 113 106 48 38 82 116 49 31 33 35 67 Slowest Speed 700 | 160 160 160 160 305 198 114 114 176 135 122 122 122 92 35 102 102 700 Overloaded Moves 302 | . . . . . . . . . 7 37 5 4 . 24 49 55 121 Propulsion Burnouts . | . . . . . . . . . . . . . . . . . . Robots Hopped . | . . . . . . . . . . . . . . . . . . Potential Cave-ins 22 | . . . . . 4 . . . . 6 . . . . . . 12 Cave-ins Triggered 2 | . . . . . . . . . . 1 . . . . . . 1 Teleports 1 | . . . . . . . . . . . . . . . . . 1 Exploration Rate (%) 64 | 5 93 72 90 85 50 95 63 69 82 47 83 75 61 43 15 91 33 Regions Visited 17 Branch Regions 13 Pre-discovered Areas 16 | . 2 1 6 2 1 1 . . . . . . 3 . . . . Known Exits Taken 15 | . . 1 1 1 1 1 1 1 1 1 1 1 1 1 1 1 . Unknown Exits Taken 2 | 1 1 . . . . . . . . . . . . . . . . Scrap Searched 16 | . . 1 . 4 . 2 1 . 2 . 2 2 . 2 . . . Spaces Dug 212 | . 10 24 . . 52 51 1 . 4 30 8 . . 1 11 12 8 Terrain Destroyed 893 | . 18 103 111 . 180 78 79 151 19 86 16 1 . 1 21 12 17 Melee 16 | . . . . . . . . . . . . . . . . 11 5 Projectile 245 | . 4 . . . 83 6 3 4 19 86 16 1 . 1 18 1 3 AOE 615 | . 14 103 111 . 80 72 76 147 . . . . . . 3 . 9 Terrain Rammed . | . . . . . . . . . . . . . . . . . . Walls Destroyed . | . . . . . . . . . . . . . . . . . . Machines Disabled . | . . . . . . . . . . . . . . . . . . Actions | -11 -10 -10 -7 -7 -5 -5 -5 -5 -4 -4 -4 -4 -4 -3 -3 -3 -3 --------- Run | Yrd Mat Sub Rec Scr Fac Upp Upp War Pro Fac Upp Upp Zhi Pro Res Qua Frg Total 16302 | 72 857 1570 905 2137 2341 687 445 1023 783 1493 720 507 200 408 501 1095 558 Wait 1609 | 2 225 50 320 126 235 65 5 41 155 94 110 . 6 95 6 61 13 Move 13211 | 55 572 1390 541 1921 1651 593 417 818 597 1237 571 502 167 301 440 938 500 Hop . | . . . . . . . . . . . . . . . . . . Pick Up 161 | 4 5 13 3 42 28 5 1 22 . 14 . 1 5 1 1 11 5 Fast Attach 75 | 7 1 2 1 4 20 1 . 22 . 2 . . 4 . 4 3 4 Attach 59 | . . 2 3 2 17 1 1 5 4 9 1 . 3 . 2 3 6 Detach 26 | . 1 . 3 1 4 . . 7 4 1 . . 1 . 3 . 1 Swap 305 | . 7 32 11 7 102 10 12 30 6 31 4 2 6 4 16 20 5 Drop 163 | . 3 17 4 34 26 3 . 43 . 6 . . 8 1 3 14 1 Fire 611 | 4 39 64 13 . 249 9 8 27 17 88 34 2 . 5 25 14 13 Melee 44 | . . . . . . . . . . 4 . . . 1 1 29 9 Ram 3 | . . . . . . . . . . 1 . . . . . 2 . Kick 10 | . . . . . 9 . 1 . . . . . . . . . . Crush 10 | . 4 . 6 . . . . . . . . . . . . . . Escape Stasis 2 | . . . . . . . . . . 1 . . . . . . 1 Rewire 5 | . . . . . . . . . . 5 . . . . . . . Trap . | . . . . . . . . . . . . . . . . . . Miscellaneous 8 | . . . . . . . . 8 . . . . . . . . . Route ------- -11/Scrapyard -10/Materials (discovered 5 exits: [*Mat x3] / [*Min] / *Sub) -10/Subcaves (discovered 3 exits: *Mat x2 / *Rec) -7/Recycling (discovered 2 exits: *Fac / *Scr) -7/Scraptown (discovered 2 exits: *Fac x2) -5/Factory (discovered 4 exits: *Fac x3 / *Upp) -5/Upper Caves -5/Upper Caves (discovered 2 exits: *Fac / *War) -5/Warlord -4/Proximity Caves -4/Factory (discovered 4 exits: *Res / *Upp x2 / Arm) -4/Upper Caves -4/Upper Caves (discovered 2 exits: *Res / *Zhi) -4/Zhirov -3/Proximity Caves -3/Research (discovered 2 exits: Res / *Qua) -3/Quarantine (discovered 3 exits: *Res / *Sec / *Frg) -3/Protoforge History --------- Turn | Location | Event 33 | -11/Scrapyard | Discovered new exit (range 16) 115 | -11/Scrapyard | Entered Materials 310 | -10/Materials | Build established: Mutant 569 | -10/Materials | Discovered new exit (range 15) 763 | -10/Materials | Discovered new exit (range 5) 997 | -10/Materials | Discovered new exit (range 3) 1144 | -10/Materials | Discovered new exit (range 7) 1223 | -10/Materials | Learned location of Storage (-7) 1256 | -10/Materials | Learned location of 1 exit from Storage 1258 | -10/Materials | Discovered new exit (range 8) 1280 | -10/Materials | Learned Storage trap positions 1296 | -10/Materials | Learned Recycling recycling unit intel 1322 | -10/Materials | Learned Recycling recycling unit intel 1356 | -10/Materials | Learned location of Mines (-9) 1388 | -10/Materials | Entered Subcaves 1435 | -10/Subcaves | Visited Clippyterm 1439 | -10/Subcaves | Identified exit to Materials 1439 | -10/Subcaves | Identified exit to Recycling 1439 | -10/Subcaves | Learned Research security intel 1460 | -10/Subcaves | Shifting Twisted Machinery released Shrapnel Trap 1548 | -10/Subcaves | Shifting Twisted Machinery released Battle Rifle 1591 | -10/Subcaves | Learned location of Zion (-6) 1591 | -10/Subcaves | Met a Zionite searching for "candidates" 1680 | -10/Subcaves | Shifting Twisted Machinery released Sub. Monowheel 1686 | -10/Subcaves | Shifting Twisted Machinery released Sub. Shrapnel Launcher 1859 | -10/Subcaves | Visited 4L-MR0's lab 1890 | -10/Subcaves | Found Arachnoskeleton 2585 | -10/Subcaves | A swath of the cavern ceiling suddenly collapsed 3141 | -10/Subcaves | Learned 2 Materials zone layouts 3263 | -10/Subcaves | Core integrity fell below 50% 3920 | -10/Subcaves | Entered Recycling 3921 | -7/Recycling | Loaded intel: 5 recycling unit locations 4176 | -7/Recycling | Discovered new exit (range 8) 4813 | -7/Recycling | Scanned before Scraplab entrance 4834 | -7/Recycling | Learned location of 1 exit from Upper Caves 4892 | -7/Recycling | Learned Factory security intel 4941 | -7/Recycling | Learned location of 1 exit from Extension 5007 | -7/Recycling | Identified exit to Scraptown 5051 | -7/Recycling | Learned location of 2 exits from Factory 5089 | -7/Recycling | Learned location of 1 exit from Upper Caves 5156 | -7/Recycling | Entered Scraplab 5174 | -7/Recycling | Entered Scraptown 5174 | -7/Scraptown | System corruption cleaned by C-Scrubber 5175 | -7/Scraptown | Identified exit to Factory 5945 | -7/Scraptown | Scanned Subdweller tech in exchange for log data 5950 | -7/Scraptown | Learned Research stockpile data 6024 | -7/Scraptown | Visited SPCMW 6089 | -7/Scraptown | Visited Comm Corps 6231 | -7/Scraptown | Visited Spacefarers 6317 | -7/Scraptown | Visited Assassins FH 6461 | -7/Scraptown | Visited UFD Registry 6461 | -7/Scraptown | Registered with UFD as "Mattersourcer" 6495 | -7/Scraptown | Visited Cyclists 6514 | -7/Scraptown | Entered Cyclist Reading Room 6595 | -7/Scraptown | Visited Symbiants 6734 | -7/Scraptown | Guru changed UFD alias to "Fissionskull" 6857 | -7/Scraptown | Visited Artisan Demo Area 7034 | -7/Scraptown | Visited Junk Cannon Lab 7075 | -7/Scraptown | Visited Botcube Research 7112 | -7/Scraptown | Visited Analyses Database 7163 | -7/Scraptown | Visited Curators Association 7263 | -7/Scraptown | Visited Derelict Rescue Squad 7321 | -7/Scraptown | Visited Research Penetration Think Tank 7363 | -7/Scraptown | Visited DA-N13 Charitable Foundation 7384 | -7/Scraptown | Found DCF Scrap (28 items) 7435 | -7/Scraptown | Visited Scrap Suit Storage 7474 | -7/Scraptown | Visited A0-MCA Data Center 7511 | -7/Scraptown | Visited Abandonware Association 7544 | -7/Scraptown | Learned abandonware demo "MELTYB.EXE" 8641 | -7/Scraptown | Build established: Derelict-Mutant 8836 | -7/Scraptown | Found Botcube 8937 | -7/Scraptown | Botcube activated 8953 | -7/Scraptown | Botcube completed mutation into treaded form, armed with 1 gun, 1 cannon. 9079 | -7/Scraptown | Given a B- rating by A0-MCA 9083 | -7/Scraptown | Found A0-MCA's Component Scanner 9298 | -7/Scraptown | Met Optimus 9298 | -7/Scraptown | Accepted into 0bPrime 9392 | -7/Scraptown | Entered Factory 9392 | -5/Factory | Accompanied by 1 ally 9392 | -5/Factory | Evolved 10 slots: Power x1, Propulsion x3, Utility x5, Weapon x1 9393 | -5/Factory | Identified exit to Upper Caves 9393 | -5/Factory | Identified exit to Factory 9452 | -5/Factory | Found Imp. Powered Armor 9454 | -5/Factory | Found Imp. Powered Armor 9721 | -5/Factory | Build established: Derelict-Tank 10014 | -5/Factory | Attached CPS modules to Mutated Botcube. 10221 | -5/Factory | Found Prototype Launcher 10221 | -5/Factory | Identified Scatter Rocket Array 10342 | -5/Factory | Build established: Derelict-Skirmisher 10582 | -5/Factory | Loaded intel: 8 recycling unit locations 10764 | -5/Factory | Garrison activated, responded to threat 11211 | -5/Factory | Discovered exit to Factory (range 15) 11392 | -5/Factory | Learned location of Protoforge (-3) 11709 | -5/Factory | Attached Arachnoskeleton, gained temporary slots: Propulsion x3 12092 | -5/Factory | First assault squad dispatched 12243 | -5/Factory | Garrison activated, responded to threat 12305 | -5/Factory | Destroyed 11 combat bots 12312 | -5/Factory | Build established: Tank 12454 | -5/Factory | System corruption reached 10% 12471 | -5/Factory | Discovered exit to Factory (range 16) 12747 | -5/Factory | Entered Upper Caves 12748 | -5/Upper Caves | Identified exit to Upper Caves 12749 | -5/Upper Caves | Attracted the attention of an 0b10 checkpoint 12775 | -5/Upper Caves | Build established: Skirmisher 13541 | -5/Upper Caves | Entered another Upper Caves area 13542 | -5/Upper Caves | Identified exit to Warlord 13564 | -5/Upper Caves | Discovered exit to Factory (range 10) 13833 | -5/Upper Caves | Learned Factory emergency access door positions 14066 | -5/Upper Caves | Entered Warlord 14106 | -5/Warlord | System corruption cleaned by Quarantine Array 14269 | -5/Warlord | Rebuked by Warlord 14294 | -5/Warlord | Warlord's base attacked by MAIN.C 14376 | -5/Warlord | Found Prototype Device 14376 | -5/Warlord | Identified Thermal Barrier 14401 | -5/Warlord | Found Prototype Reactor 14421 | -5/Warlord | Build established: Tank 14644 | -5/Warlord | Warlord forces counterattacked 14657 | -5/Warlord | Found Prototype Energy Gun 14657 | -5/Warlord | Identified Vortex Rail 14660 | -5/Warlord | Found Vortex Rail 14664 | -5/Warlord | Found Prototype Launcher 14664 | -5/Warlord | Identified Vortex Catalyst Activator 14728 | -5/Warlord | Found Prototype Processor 14728 | -5/Warlord | Identified Exp. Targeting Computer 14731 | -5/Warlord | Spotted Striker 14733 | -5/Warlord | Found Prototype Processor 14733 | -5/Warlord | Identified Exp. Core Analyzer 14861 | -5/Warlord | Spotted Striker 14876 | -5/Warlord | Spotted Executioner 14957 | -5/Warlord | Destroyed 8 combat bots 14969 | -5/Warlord | Warlord base infiltrated, sounded retreat 14982 | -5/Warlord | Spotted Executioner 14986 | -5/Warlord | Destroyed Executioner 14997 | -5/Warlord | Attached CPS modules to Enhanced Demolisher. 15002 | -5/Warlord | Attached CPS modules to Enhanced Demolisher. 15004 | -5/Warlord | Attached CPS modules to Enhanced Demolisher. 15033 | -5/Warlord | Spotted Striker 15044 | -5/Warlord | Build established: Scavenger-Gunner 15055 | -5/Warlord | Spotted Executioner 15062 | -5/Warlord | Destroyed Executioner 15063 | -5/Warlord | Spotted Striker 15075 | -5/Warlord | Spotted Executioner 15108 | -5/Warlord | Spotted Striker 15129 | -5/Warlord | Found Prototype Device 15129 | -5/Warlord | Identified Exp. Shock Absorption System 15159 | -5/Warlord | Discovered new exit (range 17) 15177 | -5/Warlord | Lost 12 allies 15187 | -5/Warlord | Identified exit to Proximity Caves 15187 | -5/Warlord | Entered Proximity Caves 15189 | -4/Proximity Caves | Attracted the attention of an 0b10 checkpoint 15547 | -4/Proximity Caves | Build established: Scavenger-Scout 15592 | -4/Proximity Caves | Learned Research emergency access door positions 15664 | -4/Proximity Caves | Discovered exit to Factory (range 12) 15691 | -4/Proximity Caves | Entered Factory 15691 | -4/Factory | Evolved 2 slots: Propulsion x2 15785 | -4/Factory | Discovered new exit (range 5) 15786 | -4/Factory | Identified exit to Research 16033 | -4/Factory | Allied Derelicts emerged from ambush trap array 16036 | -4/Factory | Loaded intel: 8 recycling unit locations 16045 | -4/Factory | Discovered new exit (range 13) 16078 | -4/Factory | Lost 3 allies 16083 | -4/Factory | Identified exit to Upper Caves 16328 | -4/Factory | Crushed by falling debris 16329 | -4/Factory | System corruption reached 10% 16391 | -4/Factory | Spotted B-86 Titan 16437 | -4/Factory | Identified exit to Armory 16565 | -4/Factory | Entered Upper Caves 16574 | -4/Upper Caves | Lost 3 parts (1p2w) 16955 | -4/Upper Caves | Build established: Scavenger-Mutant 17093 | -4/Upper Caves | Spotted B-86 Titan 17171 | -4/Upper Caves | Encountered a Warlord checkpoint 17179 | -4/Upper Caves | Learned Research trap positions 17180 | -4/Upper Caves | Discovered new exit (range 8) 17183 | -4/Upper Caves | Identified exit to Upper Caves 17221 | -4/Upper Caves | Entered another Upper Caves area 17222 | -4/Upper Caves | Encountered a Warlord checkpoint 17330 | -4/Upper Caves | Discovered exit to Research (range 4) 17338 | -4/Upper Caves | Learned 12 Research zone layouts 17627 | -4/Upper Caves | Learned Research interactive machine intel 17805 | -4/Upper Caves | Discovered new exit (range 5) 17806 | -4/Upper Caves | Identified exit to Zhirov 17814 | -4/Upper Caves | Entered Zhirov 17814 | -4/Zhirov | Discovered new exit (range 3) 17828 | -4/Zhirov | Met Zhirov 17837 | -4/Zhirov | Learned location of Quarantine (-3) 17837 | -4/Zhirov | Learned location of Testing (-2) 17837 | -4/Zhirov | Learned location of Command (-1) 17839 | -4/Zhirov | Zhirov requested help retrieving the SGEMP Prototype 17846 | -4/Zhirov | Found Alien Artifact 17846 | -4/Zhirov | Identified Integrated Reactor 17846 | -4/Zhirov | Installed Integrated Reactor, increased core energy generation (+10) 17891 | -4/Zhirov | Found Alien Artifact 17928 | -4/Zhirov | Identified exit to Proximity Caves 17930 | -4/Zhirov | Entered Proximity Caves 17932 | -3/Proximity Caves | Spotter reported a threat 17934 | -3/Proximity Caves | Spotter reported a threat 18001 | -3/Proximity Caves | Spotter reported a threat 18019 | -3/Proximity Caves | Encountered a Derelict sapper outpost 18134 | -3/Proximity Caves | Discovered exit to Research (range 12) 18139 | -3/Proximity Caves | Entered Research 18139 | -3/Research | Evolved 2 slots: Propulsion x1, Utility x1 18140 | -3/Research | Identified exit to Research 18140 | -3/Research | Identified exit to Quarantine 18141 | -3/Research | Loaded intel: 83 trap records 18145 | -3/Research | Loaded intel: 45 interactive machine locations 18218 | -3/Research | Found Prototype Device 18218 | -3/Research | Identified Adv. Kinecellerator 18250 | -3/Research | Loaded intel: 5 recycling unit locations 18269 | -3/Research | Build established: Scavenger-Scout 18384 | -3/Research | Entered Quarantine 18563 | -3/Quarantine | Found Alien Slashing Weapon 18563 | -3/Quarantine | Identified Sigix Broadsword 18639 | -3/Quarantine | Discovered exit to Research (range 13) 18719 | -3/Quarantine | Found Alien Artifact 18725 | -3/Quarantine | Found Alien Artifact 18732 | -3/Quarantine | Learned 4 Section 7 zone layouts 18795 | -3/Quarantine | Identified Vortex Chain Reactor 18798 | -3/Quarantine | Learned Section 7 emergency access door positions 18798 | -3/Quarantine | Found Alien Artifact 18814 | -3/Quarantine | Found Alien Artifact 18853 | -3/Quarantine | Learned 4 Access zone layouts 18870 | -3/Quarantine | Found Alien Artifact 18884 | -3/Quarantine | Search patrols dispatched 18897 | -3/Quarantine | Identified exit to Section 7 18897 | -3/Quarantine | Identified exit to Protoforge 18920 | -3/Quarantine | Spotted Fortress 18933 | -3/Quarantine | Learned Research trap positions 18946 | -3/Quarantine | Entered Protoforge 19003 | -3/Protoforge | Spotted Hotshot 19030 | -3/Protoforge | Superfortress began startup sequence 19078 | -3/Protoforge | Identified Terrabomb (x2) 19078 | -3/Protoforge | Used Terrabomb 19078 | -3/Protoforge | Additional patrols dispatched to research labs 19078 | -3/Protoforge | Spotted Decapitator 19087 | -3/Protoforge | Spotted Decapitator 19102 | -3/Protoforge | Spotted Hotshot 19118 | -3/Protoforge | Crushed by falling debris 19119 | -3/Protoforge | System corruption reached 10% 19127 | -3/Protoforge | Identified Transdimensional Reconstructor (x2) 19127 | -3/Protoforge | Warped through subspace 19142 | -3/Protoforge | Core integrity fell below 50% 19168 | -3/Protoforge | Lost 16 parts (1p6n6u3w) 19204 | -3/Protoforge | Spotted EXE-6 19206 | -3/Protoforge | Released all parts (3) 19209 | -3/Protoforge | Core integrity fell below 20% 19221 | -3/Protoforge | UFD initiated attack on Protoforge 19221 | -3/Protoforge | Loaded intel: 3 recycling unit locations 19265 | -3/Protoforge | Optimus greeted in Protoforge 19365 | -3/Protoforge | Build established: Mutant 19377 | -3/Protoforge | Self-destructed Last Messages --------------- 19336_ N-04 Retriever inserts Imp. Quantum Reactor into Forge Plexus. 19341_ N-04 Retriever inserts Mak. Medium Armor Plating into Forge Plexus. 19342_ System corrupted: IFF burst signal emitted. 19342_ N-04 Retriever inserts Ovr. Coil Gun into Forge Plexus. 19343_ N-04 Retriever inserts Imp. Dynamic Insulation System into Forge Plexus. 19344_ N-04 Retriever inserts Mak. Propulsion Shielding into Forge Plexus. 19345_ N-04 Retriever inserts 0bPrime Scrap Suit into Forge Plexus. 19346_ N-04 Retriever inserts Unknown Ballistic Gun into Forge Plexus. 19371_ 0bP_NET: New 0b10 prototypes are being dispatched from the Protoforge Garrison Access, destroy it to block them! 19377_ System corrupted: Heat flow error (+227). Map ----- +----------------------------------------------------+ | """"""""""""""" " " "??????????????????? | | """""""""""""""" " """ "??????????????????? | | """""""""""""""" "" """ " ?????????????????? | | """""""""""""""" "" " "" " ?????????????????? | | """"""""""""""""" "" " ?????????????????? | | """"""""""""""""" " " "" "" " ?????????????????? | | ?"""""""""""""""" " " ?????????????????? | | ?"""""""""""""""" "" " ?????????????????? | | ??""""""""""""""" " " """ ????????????????? | | ??""""""""""""""" " #???????????????? | | ??""""""""""""""" " #??????????????? | | ?"""""""""""""""" " "" "" #??????????????? | | ?"""""""""""""""" " "" " #???????????????? | | ?""""""""""""""" "" " " "#???????????????? | | ?""""""""""""""" """ " #???????????????? | | ?""""""""""""""" "" SS"" #???????????????? | | ?"""""""""""""" s " SS #???????????????? | | ??"""""""""""" "s " " "" #???????????????? | | ??""""""""""" j" j " """" #???????????????? | | ??"""""""""" ss " " """ #???????????????? | | ?"""""""""" "" " " "" #???????????????? | | ?""""""""" "" "" " "" #???????????????? | | ?"""""" "" "" #???????????????? | | ? "" "" ""E """ """ #???????????????? | | ??" "" "" "TT """" #???????????????? | | ? " " " E TT @ """" ###?????????????? | | ??" """" """" " "" """ "" <&#?????????????? | | ?? "" """""""""" &&#?????????????? | | ??"" " % &&#?????????????? | | ???" " """ " "% """" &&#?????????????? | | ??? " "" "" " % % % &&#?????????????? | | ??? """" " "" "" "" &&#?????????????? | | ????""" " " " % ###?????????????? | | ???? """" " #???????????????? | | ?????" " #???????????????? | | ?????""""""" """ #???????????????? | | ?????? """ #???????????????? | | ????????"""" " " " """""""#???????????????? | | ?????????###########+++###########???????????????? | | ???????????????#"" ""#?????????????????????? | | ?????????????###" "###???????????????????? | | ?????????????#"" ""#???????????????????? | | ?????????????#"" ""#???????????????????? | | ?????????????#"" ""#???????????????????? | | ?????????????#"Y Y"#???????????????????? | | ?????????????#"" ""#???????????????????? | | ?????????????#"" ""#???????????????????? | | ?????????????#"" ""#???????????????????? | | ?????????????###" "###???????????????????? | | ???????????????#"" ""#?????????????????????? | +----------------------------------------------------+ Best States ------------- Heat Dissipation 86 Energy Generation 65 Energy Capacity 900 Matter Stores 300 Matter Capacity 300 Sight Range 23 Robot Scan Range 16 Terrain Scan Density 10 ECM Strength 2 Jamming Range 16 Armor Coverage 550 Resistance: TH 50 Resistance: EX 75 Utility Shielding 66 Weapon Shielding 90 Evasion (%) 71 Targeting Accuracy 20 Core Analysis 8 Recoil Reduction 2 Kinecelleration 50 Offensive Hacking 14 Defensive Hacking 14 Item Schematics ----------------- Assault Drone Bay | -4/Zhirov | Free Exp. Heat Sink | -4/Zhirov | Free Exp. Optical Array | -4/Zhirov | Free Imp. Arc Thrower | -4/Zhirov | Free Centrium Light Armor Plating | -3/Quarantine | Archive Robot Schematics ------------------ X-82 Rainmaker | -3/Quarantine | Archive Fabricated ------------ Nothing Repaired ---------- Nothing Studied --------- Cmb. Gravmag System | -4/Factory | Hacked Mni. Grenade Launcher | -4/Factory | Hacked Lrn. Proton Cannon | -4/Factory | Hacked Cmb. Antigrav System | -3/Quarantine | Hacked Cmb. Linear Gravjet | -3/Quarantine | Hacked Alien Tech Used ----------------- Integrated Reactor Sigix Broadsword Terrabomb Transdimensional Reconstructor Achievements -------------- None Challenges ------------ None Game ------ Seed DeepDerelictInsulator Manual? 0 Play Time 03:35:02 Cumulative 442.1 hours Start 2025.10.25 @ 20:30:34 End 2025.10.26 @ 06:24:55 Sessions 11 Manual Loads 0 Difficulty Rogue Special Mode None Game No. 230 Rogue 230 Adventurer 0 Explorer 0 Win Type - Total 20 Types 12/1/5/1/0/0/0/1/0/0 Lore% 91 Gallery% 85 Achievement% 76 Wizard Run 0 Options --------- Layout 2 ASCII 0 Keyboard 1 Movement Vi Keybinds 0 Fullscreen 1 Font 28/Terminus Map View 50x52 Zoom Use 0% Tactical HUD 1 Map Filters NONE Filters NONE Steam 1 RUN: 54c72f19-c5b9-40c3-a119-5dca80f8ca7d